bitfinex/quotes_BTCUSD_20240723
["timestamp","ask_amount","ask_price","bid_price","bid_amount"]
[1721695643405,0.00084,67839.0,67838.0,1.92539972]
[1721695643642,0.00084,67839.0,67838.0,1.95512382]
[1721695643940,0.00084,67839.0,67838.0,1.99303142]
[1721695644197,0.00084,67839.0,67838.0,2.24994382]
[1721695644423,0.00084,67839.0,67838.0,1.99303142]
[1721695644658,0.00084,67839.0,67838.0,1.96912382]
[1721695644907,0.00084,67839.0,67838.0,1.95188095]
[1721695645144,0.00084,67839.0,67838.0,1.93207088]
[1721695645393,0.00084,67839.0,67838.0,1.91482801]
[1721695645627,0.00084,67839.0,67838.0,1.93207088]
[1721695646103,0.00084,67839.0,67838.0,2.24089088]
[1721695646978,0.00084,67839.0,67838.0,2.27846273]
[1721695647722,0.00084,67839.0,67838.0,1.94607088]
[1721695647973,0.00084,67839.0,67838.0,1.93945088]
[1721695648196,0.00084,67839.0,67838.0,2.22027088]
[1721695648437,0.00084,67839.0,67838.0,1.92545088]
[1721695648677,0.00084,67839.0,67838.0,1.93620801]
[1721695649174,0.00084,67839.0,67838.0,1.95020801]
[1721695649430,0.00084,67839.0,67838.0,1.92220801]
[1721695650616,0.00084,67839.0,67838.0,1.47520801]
[1721695650844,0.00084,67839.0,67838.0,1.14020815]
[1721695651105,0.00084,67839.0,67838.0,1.15420815]
[1721695651340,0.11229713,67839.0,67838.0,0.46456815]
[1721695651619,0.17509713,67839.0,67838.0,0.46456815]
[1721695651866,0.17509713,67839.0,67838.0,0.45056815]
[1721695652103,0.17509713,67839.0,67838.0,0.75938815]
[1721695652340,0.17509713,67839.0,67838.0,0.74538815]
[1721695652803,0.17509713,67839.0,67838.0,0.45856815]
[1721695653069,0.17509713,67839.0,67838.0,0.02233815]
[1721695653324,0.17509713,67839.0,67838.0,0.03533815]
[1721695653816,0.17509713,67839.0,67838.0,0.16874815]
[1721695654046,0.17509713,67839.0,67838.0,0.17874815]
[1721695654519,0.17509713,67839.0,67838.0,0.16874815]
[1721695654771,0.17509713,67839.0,67838.0,0.46356815]
[1721695655020,0.17509713,67839.0,67838.0,0.74938815]
[1721695655517,0.14234,67839.0,67838.0,0.75738815]
[1721695655770,0.14234,67839.0,67838.0,0.74938815]
[1721695655771,0.17509713,67839.0,67838.0,0.74938815]
[1721695655997,0.14234,67839.0,67838.0,0.75638815]
[1721695656223,0.17509713,67839.0,67838.0,0.74538815]
[1721695656477,0.17509713,67839.0,67838.0,0.75438815]
[1721695657639,0.17509713,67839.0,67838.0,0.76638815]
[1721695663254,0.26142188,67839.0,67838.0,0.76638815]
[1721695665833,0.26132751,67839.0,67838.0,0.76638815]
[1721695666247,0.17509713,67839.0,67838.0,0.76638815]
[1721695666459,0.26132155,67839.0,67838.0,0.76638815]
[1721695668370,0.26132155,67839.0,67838.0,0.02933815]
[1721695668589,0.26132155,67839.0,67838.0,0.47156815]
[1721695669003,0.26135101,67839.0,67838.0,0.47156815]
[1721695670055,0.26135101,67839.0,67838.0,0.02933815]
[1721695670260,0.28443224,67839.0,67838.0,0.02933815]
[1721695670700,0.43183924,67839.0,67838.0,0.02933815]
[1721695670930,0.72665424,67839.0,67838.0,0.02933815]
[1721695671155,0.43183924,67839.0,67838.0,0.02933815]
[1721695672047,0.43142692,67839.0,67838.0,0.02933815]
[1721695672693,0.28401992,67839.0,67838.0,0.02933815]
[1721695672933,0.43142692,67839.0,67838.0,0.02933815]
[1721695673167,0.47542506,67839.0,67838.0,0.02933815]
[1721695673652,0.32801806,67839.0,67838.0,0.02933815]
[1721695674367,0.35001713,67839.0,67838.0,0.02933815]
[1721695674854,0.25126279,67839.0,67838.0,0.02933815]
[1721695675105,0.25205196,67839.0,67838.0,0.02933815]
[1721695675351,0.37290715,67839.0,67838.0,0.02933815]
[1721695675584,0.37290715,67839.0,67838.0,0.02838]
[1721695675585,0.43221609,67839.0,67838.0,0.02838]
[1721695675813,0.72703109,67839.0,67838.0,0.02838]
[1721695676037,0.72703109,67839.0,67838.0,0.02933815]
[1721695676258,0.83715367,67839.0,67838.0,0.02838]
[1721695677856,0.43221609,67839.0,67838.0,0.02933815]
[1721695678097,0.34558536,67839.0,67838.0,0.04710636]
[1721695678327,0.43234556,67839.0,67838.0,0.04710636]
[1721695678584,0.34558536,67839.0,67838.0,0.04710636]
[1721695678815,0.43222536,67839.0,67838.0,0.04710636]
[1721695679697,0.72704036,67839.0,67838.0,0.04710636]
[1721695679924,0.72704036,67839.0,67838.0,0.02933815]
[1721695680418,0.85942544,67839.0,67838.0,0.02933815]
[1721695680661,1.15424044,67839.0,67838.0,0.02933815]
[1721695680895,1.15439861,67839.0,67838.0,0.02838]
[1721695681129,0.85958361,67839.0,67838.0,0.02933815]
[1721695681348,0.78625884,67839.0,67838.0,0.02933815]
[1721695681801,0.34403684,67839.0,67838.0,0.02933815]
[1721695682026,0.34403684,67839.0,67838.0,0.06184836]
[1721695682280,0.34403684,67839.0,67838.0,0.20925836]
[1721695682509,0.34403684,67839.0,67838.0,0.79889836]
[1721695682510,0.20253684,67839.0,67838.0,0.79889836]
[1721695682975,0.14342784,67839.0,67838.0,0.79889836]
[1721695683197,0.11067071,67839.0,67838.0,0.79889836]
[1721695683429,0.11067071,67839.0,67838.0,1.09371836]
[1721695683654,0.08811851,67839.0,67838.0,1.16881836]
[1721695683872,0.11119839,67839.0,67838.0,1.16881836]
[1721695684557,0.11119839,67839.0,67838.0,0.87399836]
[1721695684781,0.14395552,67839.0,67838.0,0.76638815]
[1721695686154,0.14395552,67839.0,67838.0,1.06120815]
[1721695686601,0.14432469,67839.0,67838.0,1.06120815]
[1721695687055,0.11156756,67839.0,67838.0,1.06120815]
[1721695687285,0.02391988,67839.0,67838.0,1.06120815]
[1721695688654,0.11156756,67839.0,67838.0,1.06120815]
[1721695688873,0.02391988,67839.0,67838.0,1.06120815]
[1721695689099,0.05667701,67839.0,67838.0,1.06120815]
[1721695691348,0.05667701,67839.0,67838.0,0.47156815]
[1721695691895,0.11747701,67839.0,67838.0,0.47156815]
[1721695692105,0.20512469,67839.0,67838.0,0.17674815]
[1721695692315,0.20512469,67839.0,67838.0,0.47156815]
[1721695693122,0.28682469,67839.0,67838.0,0.02933815]
[1721695695030,0.19917701,67839.0,67838.0,0.02933815]
[1721695700986,0.34658401,67839.0,67838.0,0.02933815]
[1721695701202,0.19917701,67839.0,67838.0,0.02933815]
[1721695701674,1.23102901,67839.0,67838.0,0.02838]
[1721695701976,1.47092901,67839.0,67838.0,0.02838]
[1721695702169,1.6760902,67839.0,67838.0,0.02838]
[1721695702390,1.7260902,67839.0,67838.0,0.02838]
[1721695702822,1.77718356,67839.0,67838.0,0.01638]
[1721695703306,1.78018356,67839.0,67838.0,0.01738]
[1721695703522,1.78018356,67839.0,67838.0,0.01638]
[1721695703738,1.78018356,67839.0,67838.0,0.01738]
[1721695703971,1.78318356,67839.0,67838.0,0.01738]
[1721695704191,1.72718356,67839.0,67838.0,0.01638]
[1721695704441,1.72718356,67839.0,67838.0,0.00738]
[1721695704673,1.77718356,67839.0,67838.0,0.00738]
[1721695705345,1.72718356,67839.0,67838.0,0.00738]
[1721695705785,1.53713382,67839.0,67838.0,0.00838]
[1721695706031,1.73862295,67839.0,67838.0,0.00838]
[1721695707185,1.73862295,67839.0,67838.0,0.00938]
[1721695707432,1.95623982,67839.0,67838.0,0.00938]
[1721695708143,2.87944245,67839.0,67838.0,0.00938]
[1721695708401,3.0100515,67839.0,67838.0,0.00938]
[1721695709300,2.78033172,67839.0,67838.0,0.00938]
[1721695709527,2.36308885,67839.0,67838.0,0.00938]
[1721695709766,2.4324798,67839.0,67838.0,0.00938]
[1721695711906,2.34972267,67839.0,67838.0,0.00938]
[1721695712143,2.34380865,67839.0,67838.0,0.00938]
[1721695712605,2.42656578,67839.0,67838.0,0.00938]
[1721695713284,2.34380865,67839.0,67838.0,0.00938]
[1721695713498,2.42656578,67839.0,67838.0,0.00938]
[1721695714477,2.34380865,67839.0,67838.0,0.00938]
[1721695715127,2.23099067,67839.0,67838.0,0.00938]
[1721695715353,2.42656942,67839.0,67838.0,0.00938]
[1721695718245,2.64488233,67839.0,67838.0,0.00938]
[1721695718717,2.42752162,67839.0,67838.0,0.00938]
[1721695718935,2.45497702,67839.0,67838.0,0.00938]
[1721695719156,2.64487702,67839.0,67838.0,0.00938]
[1721695719391,2.17752162,67839.0,67838.0,0.00938]
[1721695719614,2.37752162,67839.0,67838.0,0.00938]
[1721695719831,2.17752162,67839.0,67838.0,0.00938]
[1721695720076,2.37752162,67839.0,67838.0,0.00938]
[1721695720736,2.59487702,67839.0,67838.0,0.00938]
[1721695721401,2.37810931,67839.0,67838.0,0.00938]
[1721695722028,2.42810931,67839.0,67838.0,0.00938]
[1721695724304,2.31420931,67839.0,67838.0,0.00938]
[1721695724527,2.31408923,67839.0,67838.0,0.00938]
[1721695726905,2.11408923,67839.0,67838.0,0.00938]
[1721695727140,2.31408923,67839.0,67838.0,0.00938]
[1721695727620,2.31449408,67839.0,67838.0,0.00938]
[1721695728270,2.53181707,67839.0,67838.0,0.00938]
[1721695729181,2.18700207,67839.0,67838.0,0.00938]
[1721695730731,2.18672355,67839.0,67838.0,0.00938]
[1721695731169,2.13768181,67839.0,67838.0,0.00938]
[1721695731407,1.84425819,67839.0,67838.0,0.00938]
[1721695731814,1.72025819,67839.0,67838.0,0.00938]
[1721695732059,1.92025819,67839.0,67838.0,0.00938]
[1721695733664,1.72323382,67839.0,67838.0,0.00938]
[1721695733875,1.86916168,67839.0,67838.0,0.00938]
[1721695734132,1.35454262,67839.0,67838.0,0.00938]
[1721695734339,1.37664187,67839.0,67838.0,0.00938]
[1721695734771,1.43184668,67839.0,67838.0,0.00938]
[1721695735241,1.64935762,67839.0,67838.0,0.00938]
[1721695735667,1.44935762,67839.0,67838.0,0.00938]
[1721695735920,1.59415281,67839.0,67838.0,0.00938]
[1721695736140,1.43184668,67839.0,67838.0,0.00938]
[1721695736801,1.43243634,67839.0,67838.0,0.00938]
[1721695737253,1.59475836,67839.0,67838.0,0.00938]
[1721695737885,1.64996317,67839.0,67838.0,0.00938]
[1721695738607,1.07918598,67839.0,67838.0,0.00938]
[1721695738841,1.29998318,67839.0,67838.0,0.00938]
[1721695739075,1.39479935,67839.0,67838.0,0.00938]
[1721695739301,1.23243634,67839.0,67838.0,0.00938]
[1721695739518,1.37723153,67839.0,67838.0,0.00938]
[1721695739968,1.03591882,67839.0,67838.0,0.00938]
[1721695740178,1.37799117,67839.0,67838.0,0.00938]
[1721695740442,1.43319535,67839.0,67838.0,0.00938]
[1721695740873,1.23319535,67839.0,67838.0,0.00938]
[1721695741088,1.59560907,67839.0,67838.0,0.00938]
[1721695741299,1.43319535,67839.0,67838.0,0.00938]
[1721695741742,1.37799054,67839.0,67838.0,0.00938]
[1721695741965,0.48260157,67839.0,67838.0,0.0249404]
[1721695742198,0.26495354,67839.0,67838.0,0.60702855]
[1721695742422,0.45771305,67839.0,67838.0,0.16479855]
[1721695742644,0.68112005,67839.0,67838.0,0.00938]
[1721695742900,0.97593505,67839.0,67838.0,0.00888]
[1721695743153,1.63131191,67839.0,67838.0,0.00888]
[1721695743382,1.63131191,67839.0,67838.0,0.00788]
[1721695743383,1.86366986,67839.0,67838.0,0.00788]
[1721695743603,1.85266986,67839.0,67838.0,0.00788]
[1721695743825,1.80466986,67839.0,67838.0,0.00788]
[1721695744048,1.80466986,67839.0,67838.0,0.00688]
[1721695744049,1.80266986,67839.0,67838.0,0.00688]
[1721695744284,1.75266986,67839.0,67838.0,0.00688]
[1721695744504,1.80266986,67839.0,67838.0,0.00688]
[1721695745173,1.80266986,67839.0,67838.0,0.00788]
[1721695745391,1.75340115,67839.0,67838.0,0.001]
[1721695746081,1.75340115,67839.0,67838.0,0.002]
[1721695746310,1.61650115,67839.0,67838.0,0.002]
[1721695746529,1.61050115,67839.0,67838.0,0.001]
[1721695747216,1.61850115,67839.0,67838.0,0.002]
[1721695747907,1.32368615,67839.0,67838.0,0.002]
[1721695748123,1.26848134,67839.0,67838.0,0.002]
[1721695748364,1.06990461,67839.0,67838.0,0.002]
[1721695748584,1.26990461,67839.0,67838.0,0.002]
[1721695749298,0.97508961,67839.0,67838.0,0.002]
[1721695749564,0.77508961,67839.0,67838.0,0.002]
[1721695749781,0.97508961,67839.0,67838.0,0.0089]
[1721695750449,0.77508961,67839.0,67838.0,0.0089]
[1721695750710,0.97508961,67839.0,67838.0,0.0089]
[1721695750944,1.26990461,67839.0,67838.0,0.0089]
[1721695751214,1.26990461,67839.0,67838.0,0.0918]
[1721695751439,0.77724323,67839.0,67838.0,0.0918]
[1721695751659,0.97724323,67839.0,67838.0,0.0089]
[1721695751876,0.97724273,67839.0,67838.0,0.0089]
[1721695752092,1.27205773,67839.0,67838.0,0.0089]
[1721695752316,0.97724273,67839.0,67838.0,0.0089]
[1721695752538,1.27198242,67839.0,67838.0,0.0089]
[1721695752988,0.97716742,67839.0,67838.0,0.0089]
[1721695753216,1.27198242,67839.0,67838.0,0.0089]
[1721695754167,0.97716742,67839.0,67838.0,0.0089]
[1721695754388,0.87771401,67839.0,67838.0,0.0089]
[1721695754621,1.27238354,67839.0,67838.0,0.0089]
[1721695756032,0.68275354,67839.0,67838.0,0.0089]
[1721695756260,1.27238354,67839.0,67838.0,0.1539]
[1721695757170,1.07238354,67839.0,67838.0,0.1539]
[1721695757403,0.77756854,67839.0,67838.0,0.1539]
[1721695757628,1.07238354,67839.0,67838.0,0.1539]
[1721695757892,0.97822187,67839.0,67838.0,0.1539]
[1721695758595,0.67789692,67839.0,67838.0,0.15485815]
[1721695758840,0.45999987,67839.0,67838.0,0.15485815]
[1721695759281,0.45999987,67839.0,67838.0,0.30226815]
[1721695759282,0.34605183,67839.0,67838.0,0.30226815]
[1721695759513,0.1052947,67839.0,67838.0,0.59608815]
[1721695759741,0.1052947,67839.0,67838.0,0.89090815]
[1721695759965,0.1052947,67839.0,67838.0,0.88990815]
[1721695759966,0.3122947,67839.0,67838.0,0.88990815]
[1721695760189,0.1122947,67839.0,67838.0,0.88990815]
[1721695760415,0.1152947,67839.0,67838.0,0.89090815]
[1721695760644,0.02491988,67839.0,67838.0,0.89090815]
[1721695760880,0.40699206,67839.0,67838.0,0.30126815]
[1721695761114,0.25767701,67839.0,67838.0,0.30126815]
[1721695761345,0.33580727,67839.0,67838.0,0.15585815]
[1721695761566,0.55670369,67839.0,67838.0,0.15678215]
[1721695762032,0.85151869,67839.0,67838.0,0.155824]
[1721695762306,1.7419655,67839.0,67838.0,0.010824]
[1721695762528,1.59414531,67839.0,67838.0,0.009824]
[1721695762752,1.79514531,67839.0,67838.0,0.012824]
[1721695762981,1.60514531,67839.0,67838.0,0.007824]
[1721695763444,1.31033031,67839.0,67838.0,0.010824]
[1721695763666,1.47634181,67839.0,67838.0,0.008824]
[1721695763883,1.47634181,67839.0,67838.0,0.007824]
[1721695763884,1.31777231,67839.0,67838.0,0.007824]
[1721695764120,1.53652162,67839.0,67838.0,0.008824]
[1721695764348,1.60758731,67839.0,67838.0,0.008824]
[1721695764571,1.60658731,67839.0,67838.0,0.007824]
[1721695765030,1.60758731,67839.0,67838.0,0.008824]
[1721695766359,1.61258731,67839.0,67838.0,0.007824]
[1721695766755,1.62049269,67839.0,67838.0,0.008824]
[1721695767327,1.61949269,67839.0,67838.0,0.007824]
[1721695767527,1.60849269,67839.0,67838.0,0.008824]
[1721695767919,1.61449269,67839.0,67838.0,0.008824]
[1721695768127,0.30815127,67839.0,67838.0,0.07478215]
[1721695768332,0.30815127,67839.0,67838.0,0.09044277]
[1721695768333,0.45497146,67839.0,67838.0,0.09044277]
[1721695768575,0.34249982,67839.0,67838.0,0.15568215]
[1721695768780,0.45521193,67839.0,67838.0,0.15568215]
[1721695768989,0.89143393,67839.0,67838.0,0.007824]
[1721695769197,1.18624893,67839.0,67838.0,0.007824]
[1721695769408,1.19224893,67839.0,67838.0,0.007824]
[1721695769626,1.24429792,67839.0,67838.0,0.008824]
[1721695770093,0.94848292,67839.0,67838.0,0.007824]
[1721695770303,0.89530311,67839.0,67838.0,0.007824]
[1721695770540,1.19111811,67839.0,67838.0,0.007824]
[1721695770743,1.24429792,67839.0,67838.0,0.007824]
[1721695770967,1.38819792,67839.0,67838.0,0.007824]
[1721695771215,1.68301292,67839.0,67838.0,0.007824]
[1721695771421,1.68201292,67839.0,67838.0,0.007824]
[1721695772078,1.87201292,67839.0,67838.0,0.007824]
[1721695772566,1.53811292,67839.0,67838.0,0.090524]
[1721695772772,0.87143964,67839.0,67838.0,0.155124]
[1721695772988,1.26360753,67839.0,67838.0,0.007324]
[1721695773203,1.31935958,67839.0,67838.0,0.007324]
[1721695773415,1.32035958,67839.0,67838.0,0.007324]
[1721695774156,1.31935958,67839.0,67838.0,0.007324]
[1721695774384,1.32035958,67839.0,67838.0,0.007324]
[1721695774623,0.97236477,67839.0,67838.0,0.007324]
[1721695774854,0.67754977,67839.0,67838.0,0.007324]
[1721695775077,0.45665335,67839.0,67838.0,0.02398277]
[1721695775304,0.25665335,67839.0,67838.0,0.60811277]
[1721695775536,0.26937412,67839.0,67838.0,0.31329277]
[1721695775773,0.17861292,67839.0,67838.0,0.29759215]
[1721695775993,0.46837628,67839.0,67838.0,0.15218215]
[1721695776228,0.46837628,67839.0,67838.0,0.14968215]
[1721695776229,0.46937628,67839.0,67838.0,0.14968215]
[1721695776471,0.54744037,67839.0,67838.0,0.14968215]
[1721695776703,0.54744037,67839.0,67838.0,0.15168215]
[1721695777168,0.54744037,67839.0,67838.0,0.15368215]
[1721695777843,0.67129555,67839.0,67838.0,0.15368215]
[1721695778064,0.54744037,67839.0,67838.0,0.15368215]
[1721695778286,0.67129464,67839.0,67838.0,0.15368215]
[1721695778506,0.67029464,67839.0,67838.0,0.15168215]
[1721695778763,0.67406547,67839.0,67838.0,0.15368215]
[1721695779417,0.67406547,67839.0,67838.0,0.16004215]
[1721695780325,0.54984292,67839.0,67838.0,0.60227215]
[1721695780546,0.34984292,67839.0,67838.0,0.66259347]
[1721695780789,0.34984292,67839.0,67838.0,0.16004215]
[1721695781009,0.34984292,67839.0,67838.0,0.30745215]
[1721695781228,0.54984292,67839.0,67838.0,0.16004215]
[1721695781465,0.31708579,67839.0,67838.0,0.60227215]
[1721695781684,0.45767701,67839.0,67838.0,0.16004215]
[1721695781920,0.55048108,67839.0,67838.0,0.16004215]
[1721695783511,0.55048108,67839.0,67838.0,0.30745215]
[1721695783728,0.11772395,67839.0,67838.0,0.30745215]
[1721695784176,0.15048108,67839.0,67838.0,0.30745215]
[1721695784398,0.35048108,67839.0,67838.0,0.30745215]
[1721695784867,0.34630531,67839.0,67838.0,0.16004215]
[1721695786996,0.31354818,67839.0,67838.0,0.30745215]
[1721695787212,0.11354818,67839.0,67838.0,0.95741337]
[1721695787882,0.11354818,67839.0,67838.0,0.89709215]
[1721695789758,0.11354818,67839.0,67838.0,1.19191215]
[1721695790195,0.02491988,67839.0,67838.0,1.58673215]
[1721695790421,0.02491988,67839.0,67838.0,1.34191215]
[1721695790422,0.00184,67839.0,67838.0,1.34191215]
[1721695790848,0.02491959,67839.0,67838.0,1.34191215]
[1721695791278,0.02391959,67839.0,67838.0,1.33991215]
[1721695791721,0.02491959,67839.0,67838.0,1.33991215]
[1721695792181,0.02491959,67839.0,67838.0,1.34791215]
[1721695792594,0.02491959,67839.0,67838.0,1.33991215]
[1721695793048,0.02491959,67839.0,67838.0,1.34891215]
[1721695793913,0.00184,67839.0,67838.0,1.34891215]
[1721695794211,0.02792794,67845.0,67844.0,1.32752615]
[1721695794452,0.15734077,67871.0,67869.0,0.44298515]
[1721695794678,0.12153512,67870.0,67869.0,0.00095815]
[1721695795397,0.94823094,67870.0,67869.0,0.00095815]
[1721695795592,0.03275713,67866.0,67865.0,0.00095815]
[1721695795808,0.03275713,67866.0,67852.0,0.00275215]
[1721695795809,0.2,67853.0,67852.0,0.00275215]
[1721695796071,0.2,67853.0,67847.0,0.00275215]
[1721695796072,0.07348942,67848.0,67847.0,0.00275215]
[1721695796300,0.07348942,67848.0,67838.0,0.020784]
[1721695796301,0.23275713,67843.0,67838.0,0.46172055]
[1721695796519,0.23275713,67843.0,67839.0,0.00275215]
[1721695796520,0.03275713,67840.0,67839.0,0.00275215]
[1721695796765,0.02307261,67840.0,67839.0,0.147407]
[1721695796975,0.03275713,67839.0,67838.0,0.020784]
[1721695797195,0.03275713,67841.0,67839.0,0.147407]
[1721695797418,0.10507321,67840.0,67839.0,0.442222]
[1721695797618,0.19032415,67843.0,67839.0,1.17797355]
[1721695797841,0.4734,67855.0,67839.0,1.17797355]
[1721695797842,0.06621841,67844.0,67843.0,0.294798]
[1721695798082,0.11036402,67851.0,67850.0,0.147383]
[1721695798313,0.03275713,67846.0,67842.0,0.00275215]
[1721695798534,0.03275713,67840.0,67838.0,0.006784]
[1721695798767,0.16619202,67839.0,67838.0,0.006784]
[1721695798987,0.05583496,67839.0,67838.0,0.006784]
[1721695799209,0.02307783,67839.0,67838.0,0.006784]
[1721695799925,0.02307783,67839.0,67838.0,0.168194]
[1721695800163,0.02307783,67839.0,67838.0,0.463014]
[1721695800394,0.03275713,67839.0,67838.0,0.020784]
[1721695800615,0.05583496,67839.0,67838.0,0.020784]
[1721695800878,0.02307783,67839.0,67838.0,0.168194]
[1721695801102,0.02307783,67839.0,67838.0,0.477014]
[1721695801730,0.05583496,67839.0,67838.0,0.477014]
[1721695801952,0.05583496,67839.0,67838.0,0.182194]
[1721695802160,0.02307783,67839.0,67838.0,0.477014]
[1721695802619,0.05583944,67840.0,67839.0,0.442222]
[1721695803110,0.05583944,67840.0,67839.0,0.737037]
[1721695803111,0.02308231,67840.0,67839.0,0.737037]
[1721695803358,0.13345853,67840.0,67839.0,0.737037]
[1721695803597,0.2,67845.0,67843.0,0.294798]
[1721695803802,0.02308158,67844.0,67843.0,0.442197]
[1721695804012,0.02308158,67844.0,67843.0,0.147399]
[1721695804244,0.03275713,67842.0,67841.0,0.147402]
[1721695804477,0.03275713,67842.0,67839.0,0.028]
[1721695804478,0.02308158,67842.0,67839.0,0.028]
[1721695804719,0.03275713,67842.0,67841.0,0.147403]
[1721695804945,0.03275713,67843.0,67842.0,0.147401]
[1721695805159,0.05583878,67843.0,67842.0,0.147401]
[1721695805587,0.03275713,67840.0,67839.0,0.161405]
[1721695805805,0.13924567,67840.0,67839.0,0.45622]
[1721695806043,0.13924567,67840.0,67839.0,0.44222]
[1721695806298,0.10648854,67840.0,67839.0,0.44222]
[1721695806508,0.13924567,67840.0,67839.0,0.44222]
[1721695806744,0.13924567,67840.0,67839.0,0.45622]
[1721695806967,0.10648854,67840.0,67839.0,0.44222]
[1721695807237,0.13924567,67840.0,67839.0,0.45622]
[1721695807676,0.14032121,67840.0,67839.0,0.47022]
[1721695808114,0.05683878,67840.0,67839.0,0.47022]
[1721695808362,0.14032122,67840.0,67839.0,0.175405]
[1721695808591,0.20032122,67840.0,67839.0,0.175405]
[1721695809115,0.16756409,67840.0,67839.0,0.47022]
[1721695809313,0.16756409,67840.0,67839.0,1.05985]
[1721695809314,0.02408165,67840.0,67839.0,1.05985]
[1721695809566,0.02408165,67840.0,67839.0,1.19845]
[1721695809991,0.0903053,67840.0,67839.0,1.19845]
[1721695810212,0.02408165,67840.0,67839.0,1.19845]
[1721695810416,0.06823205,67840.0,67839.0,1.19845]
[1721695810624,0.06722147,67840.0,67839.0,1.493265]
[1721695810827,0.09030519,67840.0,67839.0,1.493265]
[1721695811036,0.09030519,67840.0,67839.0,1.543265]
[1721695811252,0.001,67840.0,67839.0,1.493265]
[1721695811692,0.001,67840.0,67839.0,1.56050787]
[1721695811895,0.04515025,67840.0,67839.0,1.56050787]
[1721695812114,0.001,67840.0,67839.0,1.543265]
[1721695812969,0.001,67840.0,67839.0,1.643265]
[1721695813194,0.001,67840.0,67839.0,1.593265]
[1721695813941,0.001,67840.0,67839.0,1.22305]
[1721695814133,0.001,67840.0,67839.0,0.928235]
[1721695814355,0.001,67840.0,67839.0,1.22305]
[1721695814787,0.04515164,67840.0,67839.0,1.22305]
[1721695814995,0.02407953,67840.0,67839.0,1.22305]
[1721695816114,0.001,67840.0,67839.0,1.22305]
[1721695816351,0.001,67840.0,67839.0,1.34029287]
[1721695816553,0.001,67840.0,67839.0,1.73670787]
[1721695816992,0.001,67840.0,67839.0,1.74543556]
[1721695817613,0.001,67840.0,67839.0,2.04025056]
[1721695817820,0.11038004,67858.0,67839.0,2.04025056]
[1721695817821,0.04415348,67855.0,67854.0,1.173925]
[1721695818045,0.04415348,67857.0,67856.0,0.294741]
[1721695818272,0.04415348,67858.0,67857.0,0.736842]
[1721695818481,0.06622802,67859.0,67858.0,0.75407487]
[1721695818704,0.06622802,67860.0,67859.0,0.442092]
[1721695818914,0.06619633,67861.0,67857.0,0.294737]
[1721695819149,0.11038004,67864.0,67858.0,0.1]
[1721695819361,0.11038004,67864.0,67855.0,0.1]
[1721695819362,0.06618654,67859.0,67855.0,0.1]
[1721695819590,0.11038004,67862.0,67861.0,0.14736]
[1721695819833,0.33245605,67868.0,67864.0,0.147352]
[1721695819834,0.03275713,67867.0,67864.0,0.147352]
[1721695820067,0.10987394,67866.0,67864.0,0.147352]
[1721695820301,0.08679951,67865.0,67859.0,0.294727]
[1721695820524,0.05583156,67864.0,67863.0,0.147355]
[1721695820749,0.14263107,67864.0,67863.0,0.147355]
[1721695821856,0.14263107,67864.0,67858.0,0.014]
[1721695821857,0.10925713,67860.0,67858.0,0.014]
[1721695822078,0.18680809,67860.0,67859.0,0.147364]
[1721695822296,0.29298484,67860.0,67859.0,0.147364]
[1721695822539,0.29298484,67860.0,67859.0,0.442092]
[1721695822752,0.20987283,67860.0,67859.0,0.73682]
[1721695822981,0.29314416,67860.0,67859.0,0.442092]
[1721695823214,0.09957469,67860.0,67857.0,0.294737]
[1721695823425,0.11130557,67859.0,67858.0,0.542098]
[1721695823647,0.11130557,67859.0,67858.0,0.247365]
[1721695824109,0.11130557,67859.0,67858.0,0.836831]
[1721695824359,0.11130557,67859.0,67858.0,0.542098]
[1721695824598,0.03275713,67857.0,67852.0,0.294756]
[1721695824817,0.04411482,67853.0,67852.0,0.294759]
[1721695825036,0.04411482,67853.0,67852.0,0.442138]
[1721695825037,0.04411598,67853.0,67852.0,0.442138]
[1721695825519,0.04411598,67853.0,67852.0,0.147379]
[1721695825752,0.04411598,67853.0,67842.0,0.08]
[1721695825753,0.03275713,67847.0,67842.0,0.0623]
[1721695825971,0.0441196,67846.0,67840.0,0.294811]
[1721695826197,0.0441196,67846.0,67839.0,0.000924]
[1721695826198,0.03275713,67842.0,67841.0,0.00275215]
[1721695826669,0.0441196,67842.0,67840.0,0.29481]
[1721695826675,0.32756813,67840.0,67839.0,0.000924]
[1721695826928,0.05583757,67840.0,67839.0,0.000924]
[1721695827185,1.25059284,67840.0,67839.0,0.000924]
[1721695827413,0.95578184,67840.0,67839.0,0.000924]
[1721695827644,1.08814009,67840.0,67839.0,0.000924]
[1721695827878,0.95578184,67840.0,67839.0,0.000924]
[1721695828108,0.95578184,67840.0,67839.0,0.014924]
[1721695828339,0.95578184,67840.0,67839.0,0.000924]
[1721695828565,1.02148184,67840.0,67839.0,0.000924]
[1721695828792,1.02091467,67840.0,67839.0,0.000924]
[1721695829475,1.02091467,67840.0,67839.0,0.004924]
[1721695829715,1.02091467,67840.0,67839.0,0.010924]
[1721695829977,1.02091467,67840.0,67839.0,0.004924]
[1721695830462,0.98815754,67840.0,67839.0,0.010924]
[1721695830698,1.02091467,67840.0,67839.0,0.010924]
[1721695831852,1.0211153,67840.0,67839.0,0.010924]
[1721695832338,1.02173119,67840.0,67839.0,0.010924]
[1721695835226,1.31654219,67840.0,67839.0,0.010924]
[1721695838056,1.31566157,67840.0,67839.0,0.010924]
[1721695839950,1.43109988,67840.0,67839.0,0.010924]
[1721695840634,1.47993535,67840.0,67839.0,0.010924]
[1721695841061,1.49717822,67840.0,67839.0,0.004924]
[1721695841290,1.49717822,67840.0,67839.0,0.000924]
[1721695841291,1.34834275,67840.0,67839.0,0.000924]
[1721695841498,1.26805675,67840.0,67839.0,0.000924]
[1721695841709,1.38505105,67840.0,67839.0,0.000924]
[1721695842394,1.5320137,67840.0,67839.0,0.000924]
[1721695842612,1.43405105,67840.0,67839.0,0.000924]
[1721695843040,1.43605105,67840.0,67839.0,0.000924]
[1721695843256,1.73086205,67840.0,67839.0,0.000924]
[1721695843487,1.93646205,67840.0,67839.0,0.000924]
[1721695843726,2.10523054,67840.0,67839.0,0.000924]
[1721695844189,1.95446205,67840.0,67839.0,0.000924]
[1721695844415,2.06046205,67840.0,67839.0,0.001924]
[1721695844835,2.22640841,67840.0,67839.0,0.001924]
[1721695845058,2.11771265,67840.0,67839.0,0.001924]
[1721695845271,2.26641336,67840.0,67839.0,0.001924]
[1721695845521,2.26241336,67840.0,67839.0,0.001924]
[1721695845980,2.27141336,67840.0,67839.0,0.002924]
[1721695846223,2.28026955,67840.0,67839.0,0.002924]